fUSD/lending_fUSD_20250916
["ID","MTS","AMOUNT","RATE_DAILY","PERIOD"]
[385795058,1758045053392,-402.93299605,0.00030136,6]
[385795059,1758045053401,-400.0,0.00030136,6]
[385795060,1758045053410,-400.0,0.00030136,6]
[385795061,1758045053419,-568.88,0.00030136,6]
[385795062,1758045053428,-400.0,0.00030136,6]
[385795063,1758045053437,-400.0,0.00030136,6]
[385795064,1758045053446,-405.26247772,0.00030136,6]
[385795065,1758045053455,-400.0,0.00030136,6]
[385795066,1758045053463,-614.86,0.00030136,6]
[385795067,1758045053472,-790.88,0.00030136,6]
[385795068,1758045053481,-400.27294654,0.00030136,6]
[385795069,1758045053489,-400.0,0.00030136,6]
[385795070,1758045053497,-400.0,0.00030136,6]
[385795071,1758045053505,-400.0,0.00030136,6]
[385795072,1758045053514,-400.0,0.00030136,6]
[385795073,1758045053523,-453.66,0.00030136,6]
[385795074,1758045053532,-400.0,0.00030136,6]
[385795075,1758045053541,-400.0,0.00030136,6]
[385795076,1758045053549,-400.0,0.00030136,6]
[385795077,1758045053558,-400.0,0.00030136,6]
[385795078,1758045053567,-157.52665324,0.00030136,6]
[385795079,1758045053576,-1121.32,0.00030136,6]
[385795080,1758045053584,-400.0,0.00030136,6]
[385795081,1758045053593,-400.0,0.00030136,6]
[385795082,1758045053603,-400.0,0.00030136,6]
[385795083,1758045053611,-629.24,0.00030136,6]
[385795084,1758045053620,-400.0,0.00030136,6]
[385795085,1758045053629,-400.0,0.00030136,6]
[385795086,1758045053638,-1157.23,0.00030136,6]
[385795087,1758045053647,-578.97,0.00030136,6]
[385795088,1758045053656,-400.0,0.00030136,6]
[385795089,1758045053666,-400.0,0.00030136,6]
[385795090,1758045053674,-400.0,0.00030136,6]
[385795091,1758045053684,-660.3,0.00030136,6]
[385795092,1758045053693,-400.0,0.00030136,6]
[385795093,1758045053701,-400.0,0.00030136,6]
[385795094,1758045053710,-400.0,0.00030136,6]
[385795095,1758045053719,-400.0,0.00030136,6]
[385795096,1758045053728,-400.0,0.00030136,6]
[385795097,1758045053740,-677.08,0.00030136,6]
[385795098,1758045053748,-400.0,0.00030136,6]
[385795099,1758045053757,-1367.04,0.00030136,6]
[385795100,1758045053766,-400.0,0.00030136,6]
[385795101,1758045053775,-400.0,0.00030136,6]
[385795102,1758045053785,-400.0,0.00030136,6]
[385795103,1758045053794,-558.49,0.00030136,6]
[385795104,1758045053803,-400.0,0.00030136,6]
[385795105,1758045053813,-598.2,0.00030136,6]
[385795106,1758045053822,-400.0,0.00030136,6]
[385795107,1758045053830,-936.64,0.00030136,6]
[385795108,1758045053839,-474.74934245,0.00030136,6]
[385795109,1758045053848,-400.0,0.00030136,6]
[385795110,1758045053857,-400.0,0.00030136,6]
[385795111,1758045053865,-477.62553016,0.00030136,6]
[385795112,1758045053875,-400.0,0.00030136,6]
[385795113,1758045053884,-400.0,0.00030136,6]
[385795114,1758045053893,-405.55323994,0.00030136,6]
[385795115,1758045053903,-400.0,0.00030136,6]
[385795116,1758045053913,-400.0,0.00030136,6]
[385795117,1758045053922,-400.0,0.00030136,6]
[385795118,1758045053931,-400.0,0.00030136,6]
[385795119,1758045053940,-400.0,0.00030136,6]
[385795120,1758045053949,-400.0,0.00030136,6]
[385795121,1758045053958,-965.19,0.00030136,6]
[385795122,1758045053967,-400.0,0.00030136,6]
[385795123,1758045053976,-400.88524202,0.00030136,6]
[385795124,1758045053985,-401.20520922,0.00030136,6]
[385795125,1758045053995,-400.0,0.00030136,6]
[385795126,1758045054006,-403.73967252,0.00030136,6]
[385795127,1758045054014,-868.46,0.00030136,6]
[385795128,1758045054023,-403.64338992,0.00030136,6]
[385795129,1758045054032,-400.0,0.00030136,6]
[385795130,1758045054041,-400.0,0.00030136,6]
[385795131,1758045054051,-400.0,0.00030136,6]
[385795132,1758045054060,-402.45309793,0.00030136,6]
[385795133,1758045054069,-634.98,0.00030136,6]
[385795134,1758045054078,-400.0,0.00030136,6]
[385795135,1758045054087,-400.0,0.00030136,6]
[385795136,1758045054096,-500.0,0.00030136,6]
[385795137,1758045054105,-400.0,0.00030136,6]
[385795138,1758045054114,-504.53,0.00030136,6]
[385795139,1758045054123,-400.0,0.00030136,6]
[385795140,1758045054132,-500.0,0.00030136,6]
[385795141,1758045054141,-400.0,0.00030136,6]
[385795142,1758045054151,-703.54,0.00030136,6]
[385795143,1758045054159,-676.85,0.00030136,6]
[385795144,1758045054168,-1247.22,0.00030136,6]
[385795145,1758045054177,-889.13,0.00030136,6]
[385795146,1758045054186,-470.44,0.00030136,6]
[385795147,1758045054195,-151.0,0.00030136,7]
[385795148,1758045054204,-151.0,0.00030136,7]
[385795149,1758045054213,-400.0,0.00030136,6]
[385795150,1758045054223,-525.54,0.00030136,6]
[385795151,1758045054232,-400.0,0.00030136,6]
[385795152,1758045054241,-400.0,0.00030136,6]
[385795153,1758045054250,-400.0,0.00030136,6]
[385795154,1758045054259,-211.44979,0.00030136,7]
[385795155,1758045054268,-500.0,0.00030136,2]
[385795156,1758045054277,-993.34,0.00030136,6]
[385795157,1758045054286,-400.0,0.00030136,6]
[385795158,1758045054295,-495.13,0.00030136,6]
[385795159,1758045054304,-400.0,0.00030136,6]
[385795160,1758045054313,-400.0,0.00030136,6]
[385795161,1758045054322,-400.0,0.00030136,6]
[385795162,1758045054355,-400.0,0.00030136,6]
[385795163,1758045054364,-400.0,0.00030136,6]
[385795164,1758045054373,-400.0,0.00030136,6]
[385795165,1758045054382,-272.42009037,0.00030136,6]
[385795166,1758045054391,-541.73,0.00030136,6]
[385795167,1758045054400,-406.84,0.00030136,6]
[385795168,1758045054409,-2429.66,0.00030136,6]
[385795169,1758045054418,-400.0,0.00030136,6]
[385795170,1758045054427,-400.0,0.00030136,6]
[385795171,1758045054436,-400.0,0.00030136,6]
[385795172,1758045054445,-400.0,0.00030136,6]
[385795173,1758045054454,-878.21,0.00030136,6]
[385795174,1758045054463,-400.0,0.00030136,6]
[385795175,1758045054472,-400.0,0.00030136,6]
[385795176,1758045054481,-403.01468795,0.00030136,6]
[385795177,1758045054490,-402.38841876,0.00030136,6]
[385795178,1758045054499,-400.72551005,0.00030136,6]
[385795179,1758045054508,-400.0,0.00030136,6]
[385795180,1758045054517,-400.0,0.00030136,6]
[385795181,1758045054526,-400.0,0.00030136,6]
[385795182,1758045054535,-400.0,0.00030136,6]
[385795183,1758045054543,-400.0,0.00030136,6]
[385795184,1758045054552,-400.0,0.00030136,6]
[385795185,1758045054561,-907.99,0.00030136,6]
[385795186,1758045054570,-400.0,0.00030136,6]
[385795187,1758045054579,-1311.28,0.00030136,6]
[385795188,1758045054588,-400.0,0.00030136,6]
[385795189,1758045054597,-1142.16,0.00030136,6]
[385795190,1758045054606,-400.0,0.00030136,6]
[385795191,1758045054615,-3614.61,0.00030136,6]
[385795192,1758045054624,-583.46,0.00030136,6]
[385795193,1758045054632,-532.52,0.00030136,6]
[385795194,1758045054642,-400.0,0.00030136,6]
[385795195,1758045054651,-963.04,0.00030136,6]
[385795196,1758045054660,-409.62514125,0.00030136,6]
[385795197,1758045054669,-789.36,0.00030136,6]
[385795198,1758045054678,-400.0,0.00030136,6]
[385795199,1758045054686,-975.49,0.00030136,6]
[385795200,1758045054695,-400.0,0.00030136,6]
[385795201,1758045054704,-400.0,0.00030136,6]
[385795202,1758045054713,-654.67,0.00030136,6]
[385795203,1758045054721,-2474.73,0.00030136,6]
[385795204,1758045054732,-400.0,0.00030136,6]
[385795205,1758045054746,-400.0,0.00030136,6]
[385795206,1758045054755,-877.95,0.00030136,6]
[385795207,1758045054765,-400.0,0.00030136,6]
[385795208,1758045054774,-400.0,0.00030136,6]
[385795209,1758045054784,-688.39,0.00030136,6]
[385795210,1758045054793,-400.0,0.00030136,6]
[385795211,1758045054802,-400.0,0.00030136,6]
[385795212,1758045054812,-620.72,0.00030136,6]
[385795213,1758045054821,-487.71,0.00030136,6]
[385795214,1758045054830,-400.0,0.00030136,6]
[385795215,1758045054839,-626.71,0.00030136,6]
[385795216,1758045054848,-1026.45,0.00030136,6]
[385795217,1758045054857,-469.66,0.00030136,6]
[385795218,1758045054866,-400.0,0.00030136,6]
[385795219,1758045054875,-400.0,0.00030136,6]
[385795220,1758045054884,-400.0,0.00030136,6]
[385795221,1758045054893,-400.0,0.00030136,6]
[385795222,1758045054903,-400.0,0.00030136,6]
[385795223,1758045054912,-561.72,0.00030136,6]
[385795224,1758045054921,-401.87285433,0.00030136,6]
[385795225,1758045054930,-400.0,0.00030136,6]
[385795226,1758045054940,-2147.0,0.00030136,6]
[385795227,1758045054949,-400.0,0.00030136,6]
[385795228,1758045054958,-521.76,0.00030136,6]
[385795229,1758045054968,-400.0,0.00030136,6]
[385795230,1758045054977,-500.0,0.00030136,6]
[385795231,1758045054986,-504.877756,0.00030136,7]
[385795232,1758045054995,-500.0,0.00030136,6]
[385795233,1758045055005,-400.0,0.00030136,6]
[385795234,1758045055014,-504.877756,0.00030136,7]
[385795235,1758045055023,-400.0,0.00030136,6]
[385795236,1758045055033,-504.877756,0.00030136,7]
[385795237,1758045055042,-504.877756,0.00030136,7]
[385795238,1758045055163,-485.31,0.00030136,6]
[385795239,1758045055172,-400.0,0.00030136,6]
[385795240,1758045055182,-400.0,0.00030136,6]
[385795241,1758045055191,-400.0,0.00030136,6]
[385795242,1758045055201,-400.0,0.00030136,6]
[385795243,1758045055210,-400.0,0.00030136,6]
[385795244,1758045055219,-400.0,0.00030136,6]
[385795245,1758045055229,-400.0,0.00030136,6]
[385795246,1758045055239,-504.877756,0.00030136,7]
[385795247,1758045055248,-504.877756,0.00030136,7]
[385795248,1758045055257,-400.0,0.00030136,6]
[385795249,1758045055266,-400.0,0.00030136,6]
[385795250,1758045055277,-423.16,0.00030136,6]
[385795251,1758045055287,-400.0,0.00030136,6]
[385795252,1758045055297,-548.32,0.00030136,6]
[385795253,1758045055306,-470.85,0.00030136,6]
[385795254,1758045055315,-401.40849599,0.00030136,6]
[385795255,1758045055324,-504.877756,0.00030136,7]
[385795256,1758045055334,-1205.8,0.00030136,6]
[385795257,1758045055343,-504.877756,0.00030136,7]
[385795258,1758045055352,-400.0,0.00030136,6]
[385795259,1758045055361,-989.87,0.00030136,6]
[385795260,1758045055371,-14711.51,0.00030136,6]
[385795261,1758045055380,-400.0,0.00030136,6]
[385795262,1758045055390,-402.10972667,0.00030136,6]
[385795263,1758045055399,-400.0,0.00030136,6]
[385795264,1758045055408,-400.0,0.00030136,6]
[385795265,1758045055418,-400.0,0.00030136,6]
[385795266,1758045055427,-500.0,0.00030136,6]
[385795267,1758045055437,-410.81,0.00030136,6]
[385795268,1758045055446,-565.85,0.00030136,6]
[385795269,1758045055455,-400.0,0.00030136,6]
[385795270,1758045055465,-400.0,0.00030136,6]
[385795271,1758045055474,-777.34,0.00030136,6]
[385795272,1758045055483,-500.0,0.00030136,6]
[385795273,1758045055492,-500.0,0.00030136,6]
[385795274,1758045055502,-500.0,0.00030136,6]
[385795275,1758045055511,-500.0,0.00030136,6]
[385795276,1758045055521,-400.0,0.00030136,6]
[385795277,1758045055530,-698.13,0.00030136,6]
[385795278,1758045055539,-500.0,0.00030136,6]
[385795279,1758045055548,-400.0,0.00030136,6]
[385795280,1758045055557,-400.0,0.00030136,6]
[385795281,1758045055566,-289.28789094,0.00030136,2]
[385795282,1758045055575,-400.0,0.00030136,6]
[385795283,1758045055585,-623.23,0.00030136,6]
[385795284,1758045055594,-860.73,0.00030136,6]
[385795285,1758045055603,-4555.64,0.00030136,6]
[385795286,1758045055612,-400.0,0.00030136,6]
[385795287,1758045055622,-1324.44,0.00030136,6]
[385795288,1758045055632,-401.6993821,0.00030136,6]
[385795289,1758045055641,-400.0,0.00030136,6]
[385795290,1758045055651,-400.0,0.00030136,6]
[385795291,1758045055660,-400.0,0.00030136,6]
[385795292,1758045055669,-578.57,0.00030136,6]
[385795293,1758045055678,-415.65829129,0.00030136,6]
[385795294,1758045055688,-563.47,0.00030136,6]
[385795295,1758045055698,-625.17,0.00030136,6]
[385795296,1758045055707,-500.0,0.00030136,6]
[385795297,1758045055716,-2715.56,0.00030136,6]
[385795298,1758045055725,-400.0,0.00030136,6]
[385795299,1758045055735,-400.0,0.00030136,6]
[385795300,1758045055747,-500.0,0.00030136,6]
[385795301,1758045055756,-400.0,0.00030136,6]
[385795302,1758045055766,-403.81745474,0.00030136,6]
[385795303,1758045055775,-400.0,0.00030136,6]
[385795304,1758045055785,-400.0,0.00030136,6]
[385795305,1758045055795,-400.0,0.00030136,6]
[385795306,1758045055804,-400.0,0.00030136,6]
[385795307,1758045055814,-500.0,0.00030136,6]
[385795308,1758045055826,-405.94,0.00030136,6]
[385795309,1758045055835,-500.0,0.00030136,6]
[385795310,1758045055844,-500.0,0.00030136,6]
[385795311,1758045055854,-400.0,0.00030136,6]
[385795312,1758045055862,-400.0,0.00030136,6]
[385795313,1758045055871,-400.0,0.00030136,6]
[385795314,1758045055880,-1132.02,0.00030136,6]
[385795315,1758045055889,-756.17,0.00030136,6]
[385795316,1758045055898,-974.17,0.00030136,6]
[385795317,1758045055908,-400.0,0.00030136,6]
[385795318,1758045055917,-400.0,0.00030136,6]
[385795319,1758045055926,-400.0,0.00030136,6]
[385795320,1758045055935,-585.03,0.00030136,6]
[385795321,1758045055946,-151.0,0.00030136,7]
[385795322,1758045055956,-400.0,0.00030136,6]
[385795323,1758045055966,-404.70275287,0.00030136,6]
[385795324,1758045055975,-151.0,0.00030136,7]
[385795325,1758045055985,-400.0,0.00030136,6]
[385795326,1758045055994,-400.0,0.00030136,6]
[385795327,1758045056004,-400.0,0.00030136,6]
[385795328,1758045056014,-683.86,0.00030136,6]
[385795329,1758045056024,-1227.35,0.00030136,6]
[385795330,1758045056033,-400.0,0.00030136,6]
[385795331,1758045056043,-400.0,0.00030136,6]
[385795332,1758045056052,-400.0,0.00030136,6]
[385795333,1758045056062,-400.0,0.00030136,6]
[385795334,1758045056071,-400.0,0.00030136,6]
[385795335,1758045056081,-443.98498956,0.00030136,6]
[385795336,1758045056091,-516.21,0.00030136,6]
[385795337,1758045056101,-4859.27,0.00030136,6]
[385795338,1758045056110,-670.67,0.00030136,6]
[385795339,1758045056120,-400.0,0.00030136,6]
[385795340,1758045056129,-400.0,0.00030136,6]
[385795341,1758045056138,-151.0,0.00030136,7]
[385795342,1758045056147,-151.0,0.00030136,7]
[385795343,1758045056157,-514.78,0.00030136,6]
[385795344,1758045056166,-400.0,0.00030136,6]
[385795345,1758045056175,-975.51,0.00030136,6]
[385795346,1758045056184,-400.0,0.00030136,6]
[385795347,1758045056195,-270.806807,0.00030136,7]
[385795348,1758045056204,-400.0,0.00030136,6]
[385795349,1758045056213,-400.0,0.00030136,6]
[385795350,1758045056222,-400.0,0.00030136,6]
[385795351,1758045056232,-151.0,0.00030136,7]
[385795352,1758045056242,-401.41923416,0.00030136,6]
[385795353,1758045056251,-151.0,0.00030136,7]
[385795354,1758045056261,-151.0,0.00030136,7]
[385795355,1758045056270,-412.98040761,0.00030136,6]
[385795356,1758045056280,-151.0,0.00030136,7]
[385795357,1758045056289,-151.0,0.00030136,7]
[385795358,1758045056299,-151.0,0.00030136,7]
[385795359,1758045056308,-151.0,0.00030136,7]
[385795360,1758045056317,-400.0,0.00030136,6]
[385795361,1758045056326,-151.0,0.00030136,7]
[385795362,1758045056336,-151.0,0.00030136,7]
[385795363,1758045056345,-2140.96,0.00030136,6]
[385795364,1758045056354,-151.0,0.00030136,7]
[385795365,1758045056364,-151.0,0.00030136,7]
[385795366,1758045056374,-1759.47,0.00030136,6]
[385795367,1758045056383,-151.0,0.00030136,7]
[385795368,1758045056393,-400.0,0.00030136,6]
[385795369,1758045056402,-890.56,0.00030136,6]
[385795370,1758045056412,-151.0,0.00030136,7]
[385795371,1758045056421,-223.837436,0.00030136,7]
[385795372,1758045056430,-400.0,0.00030136,6]
[385795373,1758045056442,-400.0,0.00030136,6]
[385795374,1758045056451,-645.57,0.00030136,6]
[385795375,1758045056462,-708.92,0.00030136,6]
[385795376,1758045056471,-400.0,0.00030136,6]
[385795377,1758045056481,-592.36,0.00030136,6]
[385795378,1758045056490,-400.0,0.00030136,6]
[385795379,1758045056500,-975.42,0.00030136,6]
[385795380,1758045056509,-438.03,0.00030136,6]
[385795381,1758045056519,-400.0,0.00030136,6]
[385795382,1758045056528,-500.0,0.00030136,6]
[385795383,1758045056537,-767.63,0.00030136,6]
[385795384,1758045056546,-1174.23,0.00030136,6]
[385795385,1758045056556,-500.0,0.00030136,6]
[385795386,1758045056565,-400.0,0.00030136,6]
[385795387,1758045056574,-400.0,0.00030136,6]
[385795388,1758045056583,-400.0,0.00030136,6]
[385795389,1758045056592,-400.0,0.00030136,6]
[385795390,1758045056601,-400.0,0.00030136,6]
[385795391,1758045056610,-840.8,0.00030136,6]
[385795392,1758045056619,-151.0,0.00030136,7]
[385795393,1758045056628,-400.0,0.00030136,6]
[385795394,1758045056637,-151.0,0.00030136,7]
[385795395,1758045056648,-151.0,0.00030136,7]
[385795396,1758045056657,-400.0,0.00030136,6]
[385795397,1758045056666,-400.0,0.00030136,6]
[385795398,1758045056675,-400.0,0.00030136,6]
[385795399,1758045056685,-400.0,0.00030136,6]
[385795400,1758045056695,-400.0,0.00030136,6]
[385795401,1758045056704,-557.56,0.00030136,6]
[385795402,1758045056713,-1239.12,0.00030136,6]
[385795403,1758045056723,-500.1,0.00030136,6]
[385795404,1758045056732,-400.0,0.00030136,5]
[385795405,1758045056745,-400.0,0.00030136,6]
[385795406,1758045056754,-400.0,0.00030136,6]
[385795407,1758045056763,-400.0,0.00030136,6]
[385795408,1758045056772,-400.0,0.00030136,6]
[385795409,1758045056783,-401.15034566,0.00030136,6]
[385795410,1758045056792,-400.76464498,0.00030136,6]
[385795411,1758045056801,-676.24,0.00030136,6]
[385795412,1758045056812,-400.0,0.00030136,6]
[385795413,1758045056822,-400.0,0.00030136,6]
[385795414,1758045056831,-280.0,0.00030136,6]
[385795415,1758045056842,-400.0,0.00030136,6]
[385795416,1758045056851,-151.0,0.00030136,7]
[385795417,1758045056860,-500.0,0.00030136,6]
[385795418,1758045056869,-689.95,0.00030136,6]
[385795419,1758045056879,-506.24941595,0.00030136,6]
[385795420,1758045056888,-1030.17,0.00030136,6]
[385795421,1758045056897,-400.0,0.00030136,6]
[385795422,1758045056907,-400.0,0.00030136,6]
[385795423,1758045056917,-400.0,0.00030136,6]
[385795424,1758045056926,-400.0,0.00030136,6]
[385795425,1758045056936,-400.0,0.00030136,6]
[385795426,1758045056947,-549.92,0.00030136,6]
[385795427,1758045056956,-861.86,0.00030136,6]
[385795428,1758045056967,-401.13042293,0.00030136,6]
[385795429,1758045056977,-991.53,0.00030136,6]
[385795430,1758045056986,-400.0,0.00030136,6]
[385795431,1758045056996,-500.0,0.00030136,6]
[385795432,1758045057006,-400.0,0.00030136,6]
[385795433,1758045057016,-500.0,0.00030136,6]
[385795434,1758045057025,-400.0,0.00030136,6]
[385795435,1758045057035,-2642.88,0.00030136,6]
[385795436,1758045057045,-499.14,0.00030136,6]
[385795437,1758045057054,-512.45452144,0.00030136,6]
[385795438,1758045057063,-400.8847,0.00030136,6]
[385795439,1758045057072,-301.08344208,0.00030136,6]
[385795440,1758045057082,-400.0,0.00030136,6]
[385795441,1758045057092,-1124.59,0.00030136,6]
[385795442,1758045057101,-721.57,0.00030136,6]
[385795443,1758045057110,-400.0,0.00030136,6]
[385795444,1758045057120,-400.0,0.00030136,6]
[385795445,1758045057129,-400.0,0.00030136,6]
[385795446,1758045057140,-400.0,0.00030136,6]
[385795447,1758045057149,-401.04809273,0.00030136,6]
[385795448,1758045057158,-400.0,0.00030136,6]
[385795449,1758045057168,-400.0,0.00030136,6]
[385795450,1758045057177,-400.0,0.00030136,6]
[385795451,1758045057187,-856.23,0.00030136,6]
[385795452,1758045057197,-454.42,0.00030136,6]
[385795453,1758045057207,-661.41,0.00030136,6]
[385795454,1758045057216,-400.0,0.00030136,6]
[385795455,1758045057512,-400.0,0.00030136,6]
[385795456,1758045057525,-400.0,0.00030136,6]
[385795457,1758045057535,-400.0,0.00030136,6]
[385795458,1758045057544,-1199.17,0.00030136,6]
[385795459,1758045057554,-400.0,0.00030136,6]
[385795460,1758045057563,-468.81,0.00030136,6]
[385795461,1758045057573,-400.0,0.00030136,6]
[385795462,1758045057582,-400.0,0.00030136,6]
[385795463,1758045057592,-400.00369844,0.00030136,6]
[385795464,1758045057601,-400.0,0.00030136,6]
[385795465,1758045057611,-400.0,0.00030136,6]
[385795466,1758045057621,-400.0,0.00030136,6]
[385795467,1758045057630,-400.0,0.00030136,6]
[385795468,1758045057640,-400.0,0.00030136,6]
[385795469,1758045057649,-400.0,0.00030136,6]
[385795470,1758045057659,-400.0,0.00030136,6]
[385795471,1758045057668,-4034.11,0.00030136,6]
[385795472,1758045057678,-400.0,0.00030136,6]
[385795473,1758045057688,-1000.0,0.00030136,6]
[385795474,1758045057698,-498.12,0.00030136,6]
[385795475,1758045057707,-400.0,0.00030136,6]
[385795476,1758045057716,-400.0,0.00030136,6]
[385795477,1758045057726,-484.95004658,0.00030136,6]
[385795478,1758045057740,-400.0,0.00030136,6]
[385795479,1758045057750,-1096.75,0.00030136,6]
[385795480,1758045057759,-400.0,0.00030136,6]
[385795481,1758045057769,-788.58,0.00030136,6]
[385795482,1758045057778,-619.71,0.00030136,6]
[385795483,1758045057789,-401.63124293,0.00030136,6]
[385795484,1758045057798,-400.0,0.00030136,6]
[385795485,1758045057808,-400.0,0.00030136,6]
[385795486,1758045057818,-400.0,0.00030136,6]
[385795487,1758045057827,-400.0,0.00030136,6]
[385795488,1758045057837,-400.0,0.00030136,6]
[385795489,1758045057846,-400.0,0.00030136,6]
[385795490,1758045057856,-400.0,0.00030136,6]
[385795491,1758045057865,-400.0,0.00030136,6]
[385795492,1758045057875,-400.0,0.00030136,6]
[385795493,1758045057884,-889.18,0.00030136,6]
[385795494,1758045057894,-774.53,0.00030136,6]
[385795495,1758045057904,-400.0,0.00030136,6]
[385795496,1758045057914,-400.0,0.00030136,6]
[385795497,1758045057924,-978.46,0.00030136,6]
[385795498,1758045057933,-923.77,0.00030136,6]
[385795499,1758045057944,-400.0,0.00030136,6]
[385795500,1758045057953,-425.13498608,0.00030136,6]
[385795501,1758045057963,-400.0,0.00030136,6]
[385795502,1758045057972,-400.0,0.00030136,6]
[385795503,1758045057981,-400.0,0.00030136,6]
[385795504,1758045057992,-400.0,0.00030136,6]
[385795505,1758045058001,-400.0,0.00030136,6]
[385795506,1758045058011,-400.0,0.00030136,6]
[385795507,1758045058020,-400.0,0.00030136,6]
[385795508,1758045058030,-400.0,0.00030136,6]
[385795509,1758045058039,-400.0,0.00030136,2]
[385795510,1758045058050,-500.0,0.00030136,6]
[385795511,1758045058060,-400.0,0.00030136,6]
[385795512,1758045058069,-500.0,0.00030136,6]
[385795513,1758045058078,-500.0,0.00030136,6]
[385795514,1758045058088,-500.0,0.00030136,6]
[385795515,1758045058098,-743.77,0.00030136,2]
[385795516,1758045058107,-500.0,0.00030136,6]
[385795517,1758045058116,-514.76226289,0.00030136,6]
[385795518,1758045058125,-400.0,0.00030136,6]
[385795519,1758045058135,-500.0,0.00030136,6]
[385795520,1758045058145,-400.0,0.00030136,6]
[385795521,1758045058155,-400.0,0.00030136,6]
[385795522,1758045058164,-400.0,0.00030136,6]
[385795523,1758045058173,-743.77,0.00030136,2]
[385795524,1758045058183,-743.77,0.00030136,2]
[385795525,1758045058193,-494.65,0.00030136,6]
[385795526,1758045058202,-400.0,0.00030136,6]
[385795527,1758045058211,-408.7334032,0.00030136,6]
[385795528,1758045058221,-400.0,0.00030136,6]
[385795529,1758045058230,-829.33,0.00030136,6]
[385795530,1758045058240,-400.0,0.00030136,6]
[385795531,1758045058249,-400.0,0.00030136,6]
[385795532,1758045058259,-400.0,0.00030136,6]
[385795533,1758045058268,-400.0,0.00030136,6]
[385795534,1758045058278,-400.0,0.00030136,6]
[385795535,1758045058288,-400.0,0.00030136,6]
[385795536,1758045058297,-1524.51,0.00030136,6]
[385795537,1758045058307,-400.0,0.00030136,6]
[385795538,1758045058316,-400.0,0.00030136,6]
[385795539,1758045058326,-400.0,0.00030136,6]
[385795540,1758045058335,-400.0,0.00030136,6]
[385795541,1758045058344,-400.0,0.00030136,6]
[385795542,1758045058354,-500.0,0.00030136,2]
[385795543,1758045058364,-400.0,0.00030136,6]
[385795544,1758045058373,-2032.72,0.00030136,6]
[385795545,1758045058382,-568.38,0.00030136,6]
[385795546,1758045058392,-400.0,0.00030136,6]
[385795547,1758045058402,-730.62,0.00030136,6]
[385795548,1758045058411,-400.0,0.00030136,6]
[385795549,1758045058421,-400.0,0.00030136,6]
[385795550,1758045058430,-400.0,0.00030136,6]
[385795551,1758045058440,-2024.78,0.00030136,6]
[385795552,1758045058450,-400.0,0.00030136,6]
[385795553,1758045058459,-400.0,0.00030136,6]
[385795554,1758045058468,-400.0,0.00030136,6]
[385795555,1758045058478,-400.0,0.00030136,6]
[385795556,1758045058487,-400.0,0.00030136,6]
[385795557,1758045058496,-781.21,0.00030136,6]